fUSD/lending_fUSD_20240831
["ID","MTS","AMOUNT","RATE_DAILY","PERIOD"]
[336740813,1725095428820,-500.0,0.00042191,120]
[336740814,1725095428863,-500.0,0.00042191,120]
[336740815,1725095428906,-818.9,0.00042191,120]
[336740816,1725095428948,-1130.01,0.00042191,120]
[336740817,1725095428991,-1535.29,0.00042191,120]
[336740818,1725095429036,-668.3,0.00042191,120]
[336740819,1725095429078,-500.0,0.00042191,120]
[336740820,1725095429119,-500.0,0.00042191,120]
[336740821,1725095429163,-500.0,0.00042191,120]
[336740822,1725095429206,-500.0,0.00042191,120]
[336740823,1725095429249,-500.0,0.00042191,120]
[336740824,1725095429293,-643.37,0.00042191,120]
[336740825,1725095429338,-500.0,0.00042191,120]
[336740826,1725095429383,-895.7,0.00042191,120]
[336740827,1725095429423,-856.48,0.00042191,120]
[336740828,1725095429466,-1174.72,0.00042191,120]
[336740829,1725095429509,-500.0,0.00042191,120]
[336740830,1725095429552,-1112.91,0.00042191,120]
[336740831,1725095429598,-2118.08,0.00042191,120]
[336740832,1725095429642,-1308.88,0.00042191,120]
[336740833,1725095429689,-1553.44,0.00042191,120]
[336740834,1725095429733,-500.0,0.00042191,120]
[336740835,1725095429779,-630.79,0.00042191,120]
[336740836,1725095429823,-1166.02,0.00042191,120]
[336740837,1725095429866,-1158.94,0.00042191,120]
[336740838,1725095429911,-703.89,0.00042191,120]
[336740839,1725095429955,-500.0,0.00042191,120]
[336740840,1725095429999,-500.0,0.00042191,120]
[336740841,1725095430043,-3532.54,0.00042191,120]
[336740842,1725095430084,-584.18746549,0.00042191,120]
[336740843,1725095430125,-500.0,0.00042191,120]
[336740844,1725095430169,-591.39,0.00042191,120]
[336740845,1725095430215,-500.0,0.00042191,120]
[336740846,1725095430261,-2470.27,0.00042191,120]
[336740847,1725095430310,-2621.38,0.00042191,120]
[336740848,1725095430354,-628.61,0.00042191,120]
[336740849,1725095430396,-2571.2,0.00042191,120]
[336740850,1725095430443,-2254.77,0.00042191,120]
[336740851,1725095430484,-608.56,0.00042191,120]
[336740852,1725095430526,-2856.83,0.00042191,120]
[336740853,1725095430571,-500.0,0.00042191,120]
[336740854,1725095430616,-500.0,0.00042191,120]
[336740855,1725095430660,-787.27,0.00042191,120]
[336740856,1725095430706,-4198.98,0.00042191,120]
[336740857,1725095430748,-3814.21,0.00042191,120]
[336740858,1725095430792,-2319.72,0.00042191,120]
[336740859,1725095430834,-1187.21,0.00042191,120]
[336740860,1725095430876,-1080.36,0.00042191,120]
[336740861,1725095430918,-1282.16,0.00042191,120]
[336740862,1725095430959,-997.28,0.00042191,120]
[336740863,1725095431000,-4037.44,0.00042191,120]
[336740864,1725095431041,-500.0,0.00042191,120]
[336740865,1725095431082,-500.0,0.00042191,120]
[336740866,1725095431124,-1224.09,0.00042191,120]
[336740867,1725095431166,-500.0,0.00042191,120]
[336740868,1725095431211,-500.0,0.00042191,120]
[336740869,1725095431255,-2493.26,0.00042191,120]
[336740870,1725095431304,-1110.34,0.00042191,120]
[336740871,1725095431351,-1054.25,0.00042191,120]
[336740872,1725095431399,-590.31,0.00042191,120]
[336740873,1725095431447,-500.0,0.00042191,120]
[336740874,1725095431496,-2350.55,0.00042191,120]
[336740875,1725095431548,-1369.83,0.00042191,120]
[336740876,1725095431597,-1332.33,0.00042191,120]
[336740877,1725095431646,-500.0,0.00042739,120]
[336740878,1725095431696,-500.0,0.00042739,120]
[336740879,1725095431745,-500.0,0.00042739,120]
[336740880,1725095431794,-500.0,0.00042739,120]
[336740881,1725095431841,-500.0,0.00042739,120]
[336740884,1725095431890,-500.0,0.00042739,120]
[336740887,1725095431938,-500.0,0.00042739,120]
[336740892,1725095431989,-500.0,0.00042739,120]
[336740895,1725095432038,-500.0,0.00042739,120]
[336740896,1725095432087,-500.0,0.00042739,120]
[336740897,1725095432136,-500.0,0.00042739,120]
[336740898,1725095432387,-500.0,0.00042739,120]
[336740899,1725095432436,-500.0,0.00042739,120]
[336740900,1725095432487,-500.0,0.00042739,120]
[336740901,1725095432537,-710.71,0.00042739,120]
[336740902,1725095432586,-500.0,0.00042739,120]
[336740903,1725095432635,-557.74,0.00042739,120]
[336740904,1725095432684,-500.0,0.00042739,120]
[336740905,1725095432734,-500.0,0.00042739,120]
[336740906,1725095432782,-500.0,0.00042739,120]
[336740907,1725095432831,-500.0,0.00042739,120]
[336740908,1725095432877,-1123.23,0.00042739,120]
[336740909,1725095432923,-500.0,0.00042739,120]
[336740910,1725095432972,-500.0,0.00042739,120]
[336740911,1725095433019,-500.0,0.00042739,120]
[336740912,1725095433065,-762.64,0.00042739,120]
[336740913,1725095433112,-500.0,0.00042739,120]
[336740914,1725095433159,-502.32,0.00042739,120]
[336740915,1725095433210,-500.0,0.00042739,120]
[336740916,1725095433257,-679.85,0.00042739,120]
[336740917,1725095433306,-500.0,0.00042739,120]
[336740918,1725095433354,-500.0,0.00042739,120]
[336740919,1725095433401,-500.0,0.00042739,120]
[336740920,1725095433448,-721.55,0.00042739,120]
[336740921,1725095433493,-500.0,0.00042739,120]
[336740922,1725095433541,-565.51,0.00042739,120]
[336740923,1725095433590,-500.0,0.00042739,120]
[336740924,1725095433639,-500.0,0.00042739,120]
[336740925,1725095433687,-500.0,0.00042739,120]
[336740926,1725095433734,-500.0,0.00042739,120]
[336740927,1725095433782,-500.0,0.00042739,120]
[336740928,1725095433832,-500.0,0.00042739,120]
[336740929,1725095433878,-500.0,0.00042739,120]
[336740930,1725095433925,-549.02,0.00042739,120]
[336740931,1725095433974,-879.7,0.00042739,120]
[336740932,1725095434021,-1120.93,0.00042739,120]
[336740933,1725095434068,-850.45,0.00042739,120]
[336740934,1725095434115,-500.0,0.00042739,120]
[336740935,1725095434162,-500.0,0.00042739,120]
[336740936,1725095434209,-548.59608742,0.00042739,120]
[336740937,1725095434254,-720.15,0.00042739,120]
[336740938,1725095434304,-952.01,0.00042739,120]
[336740939,1725095434352,-500.0,0.00042739,120]
[336740940,1725095434398,-500.0,0.00042739,120]
[336740941,1725095434448,-500.0,0.00042739,120]
[336740942,1725095434496,-767.31,0.00042739,120]
[336740943,1725095434547,-500.0,0.00042739,120]
[336740944,1725095434597,-679.65,0.00042739,120]
[336740945,1725095434647,-295.91944321,0.00042739,120]
[336740946,1725095434697,-833.01,0.00042739,120]
[336740947,1725095434746,-500.0,0.00042739,120]
[336740948,1725095434794,-1436.9,0.00042739,120]
[336740949,1725095434839,-717.79,0.00042739,120]
[336740950,1725095434884,-911.59,0.00042739,120]
[336740951,1725095434932,-931.07,0.00042739,120]
[336740952,1725095434978,-727.87,0.00042739,120]
[336740953,1725095435024,-1205.13,0.00042739,120]
[336740954,1725095435071,-3164.47,0.00042739,120]
[336740955,1725095435115,-801.74,0.00042739,120]
[336740956,1725095435161,-500.0,0.00042739,120]
[336740957,1725095435208,-505.92,0.00042739,120]
[336740958,1725095435252,-500.0,0.00042739,120]
[336740959,1725095435297,-532.71,0.00042739,120]
[336740960,1725095435344,-1669.33,0.00042739,120]
[336740961,1725095435389,-500.0,0.00042739,120]
[336740962,1725095435437,-1066.37,0.00042739,120]
[336740963,1725095435483,-622.08,0.00042739,120]
[336740964,1725095435527,-1994.12,0.00042739,120]
[336740965,1725095435575,-1009.62,0.00042739,120]
[336740966,1725095435625,-500.0,0.00042739,120]
[336740967,1725095435675,-740.53,0.00042739,120]
[336740968,1725095435720,-500.0,0.00042739,120]
[336740969,1725095435767,-1230.33,0.00042739,120]
[336740970,1725095435814,-1763.31,0.00042739,120]
[336740971,1725095435858,-500.0,0.00042739,120]
[336740972,1725095435902,-606.13,0.00042739,120]
[336740973,1725095435947,-500.0,0.00042739,120]
[336740974,1725095435992,-500.0,0.00042739,120]
[336740975,1725095436035,-980.1,0.00042739,120]
[336740976,1725095436078,-988.12,0.00042739,120]
[336740977,1725095436123,-530.81,0.00042739,120]
[336740978,1725095436168,-924.86,0.00042739,120]
[336740979,1725095436214,-500.0,0.00042739,120]
[336740980,1725095436259,-500.0,0.00042739,120]
[336740981,1725095436307,-3646.24,0.00042739,120]
[336740982,1725095436351,-708.43,0.00042739,120]
[336740983,1725095436398,-500.0,0.00042739,120]
[336740984,1725095436443,-4493.23,0.00042739,120]
[336740985,1725095436489,-728.19,0.00042739,120]
[336740986,1725095436534,-500.0,0.00042739,120]
[336740987,1725095436580,-950.06,0.00042739,120]
[336740988,1725095436629,-575.64,0.00042739,120]
[336740989,1725095436676,-1920.7,0.00042739,120]
[336740990,1725095436722,-1812.32,0.00042739,120]
[336740991,1725095436766,-500.0,0.00042739,120]
[336740992,1725095436810,-1524.42,0.00042739,120]
[336740993,1725095436853,-500.0,0.00042739,120]
[336740994,1725095436897,-1447.18,0.00042739,120]
[336740995,1725095436940,-500.0,0.00042739,120]
[336740996,1725095436983,-500.0,0.00042739,120]
[336740997,1725095437026,-500.0,0.00042739,120]
[336740998,1725095437070,-592.47,0.00042739,120]
[336740999,1725095437115,-500.0,0.00042739,120]
[336741000,1725095437160,-500.0,0.00042739,120]
[336741001,1725095437207,-500.0,0.00042739,120]
[336741002,1725095437444,-2064.17,0.00042739,120]
[336741003,1725095437492,-1875.57,0.00042739,120]
[336741004,1725095437540,-500.0,0.00042739,120]
[336741005,1725095437588,-1128.77,0.00042739,120]
[336741006,1725095437635,-1217.2,0.00042739,120]
[336741007,1725095437682,-1083.85,0.00042739,120]
[336741008,1725095437729,-500.0,0.00042739,120]
[336741009,1725095437777,-1019.1,0.00042739,120]
[336741011,1725095437824,-710.75,0.00042739,120]
[336741014,1725095437870,-500.0,0.00042739,120]
[336741015,1725095437915,-517.99,0.00042739,120]
[336741016,1725095437962,-675.18,0.00042739,120]
[336741017,1725095438009,-500.0,0.00042739,120]
[336741018,1725095438055,-1486.52,0.00042739,120]
[336741022,1725095438102,-500.0,0.00042739,120]
[336741023,1725095438151,-500.0,0.00042739,120]
[336741024,1725095438199,-583.94,0.00042739,120]
[336741025,1725095438247,-738.68,0.00042739,120]
[336741026,1725095438296,-500.0,0.00042739,120]
[336741027,1725095438342,-500.0,0.00042739,120]
[336741028,1725095438389,-500.0,0.00042739,120]
[336741029,1725095438437,-500.0,0.00042739,120]
[336741030,1725095438485,-719.07,0.00042739,120]
[336741031,1725095438530,-3951.8,0.00042739,120]
[336741032,1725095438575,-500.0,0.00042739,120]
[336741033,1725095438621,-601.72,0.00042739,120]
[336741034,1725095438667,-1031.98,0.00042739,120]
[336741035,1725095438713,-500.0,0.00042739,120]
[336741036,1725095438759,-1766.78,0.00042739,120]
[336741037,1725095438805,-500.0,0.00042739,120]
[336741038,1725095438850,-743.24,0.00042739,120]
[336741039,1725095438893,-504.08,0.00042739,120]
[336741040,1725095438937,-1073.92,0.00042739,120]
[336741041,1725095438982,-732.6,0.00042739,120]
[336741042,1725095439027,-500.0,0.00042739,120]
[336741043,1725095439073,-1147.38,0.00042739,120]
[336741044,1725095439118,-610.57,0.00042739,120]
[336741045,1725095439163,-520.8134234,0.00042739,120]
[336741046,1725095439210,-642.6,0.00042739,120]
[336741047,1725095439255,-500.0,0.00042739,120]
[336741048,1725095439302,-1185.99,0.00042739,120]
[336741049,1725095439350,-500.0,0.00042739,120]
[336741050,1725095439396,-702.01,0.00042739,120]
[336741051,1725095439441,-500.0,0.00042739,120]
[336741052,1725095439487,-647.07,0.00042739,120]
[336741053,1725095439532,-500.0,0.00042739,120]
[336741054,1725095439578,-500.0,0.00042739,120]
[336741055,1725095439625,-500.0,0.00042739,120]
[336741056,1725095439672,-500.0,0.00042739,120]
[336741057,1725095439719,-500.0,0.00042739,120]
[336741058,1725095439770,-500.0,0.00042739,120]
[336741059,1725095439818,-500.0,0.00042739,120]
[336741060,1725095439865,-515.25,0.00042739,120]
[336741062,1725095439912,-500.0,0.00042739,120]
[336741063,1725095439958,-500.0,0.00042739,120]
[336741065,1725095440002,-500.0,0.00042739,120]
[336741067,1725095440045,-1293.85,0.00042739,120]
[336741068,1725095440088,-500.0,0.00042739,120]
[336741069,1725095440133,-500.0,0.00042739,120]
[336741070,1725095440178,-500.0,0.00042739,120]
[336741071,1725095440225,-500.0,0.00042739,120]
[336741072,1725095440271,-588.28,0.00042739,120]
[336741073,1725095440313,-508.040616,0.00042739,120]
[336741074,1725095440359,-500.0,0.00042739,120]
[336741075,1725095440403,-712.97,0.00042739,120]
[336741076,1725095440447,-1133.27,0.00042739,120]
[336741077,1725095440490,-500.0,0.00042739,120]
[336741080,1725095440533,-500.0,0.00042739,120]
[336741086,1725095440579,-674.44,0.00042739,120]
[336741091,1725095440625,-602.62,0.00042739,120]
[336741096,1725095440670,-1030.38,0.00042739,120]
[336741101,1725095440715,-510.96,0.00042739,120]
[336741107,1725095440757,-917.71,0.00042739,120]
[336741112,1725095440799,-500.0,0.00042739,120]
[336741117,1725095440842,-1707.8,0.00042739,120]
[336741123,1725095440884,-500.0,0.00042739,120]
[336741128,1725095440926,-537.31,0.00042739,120]
[336741133,1725095440969,-1038.22,0.00042739,120]
[336741139,1725095441012,-500.0,0.00042739,120]
[336741145,1725095441056,-500.0,0.00042739,120]
[336741150,1725095441098,-500.0,0.00042739,120]
[336741155,1725095441141,-708.93,0.00042739,120]
[336741161,1725095441185,-1013.32,0.00042739,120]
[336741166,1725095441228,-500.0,0.00042739,120]
[336741172,1725095441274,-922.41,0.00042739,120]
[336741176,1725095441316,-500.0,0.00042739,120]
[336741181,1725095441358,-500.0,0.00042739,120]
[336741187,1725095441400,-500.0,0.00042739,120]
[336741192,1725095441442,-500.0,0.00042739,120]
[336741196,1725095441484,-500.0,0.00042739,120]
[336741200,1725095441527,-752.56,0.00042739,120]
[336741204,1725095441571,-884.82,0.00042739,120]
[336741209,1725095441616,-500.0,0.00042739,120]
[336741213,1725095441661,-894.96,0.00042739,120]
[336741217,1725095441705,-1104.47,0.00042739,120]
[336741221,1725095441748,-500.0,0.00042739,120]
[336741225,1725095441792,-1182.0,0.00042739,120]
[336741230,1725095441836,-991.63,0.00042739,120]
[336741235,1725095441883,-1615.56,0.00042739,120]
[336741239,1725095441926,-500.0,0.00042739,120]
[336741244,1725095441972,-1066.46,0.00042739,120]
[336741249,1725095442019,-1358.03,0.00042739,120]
[336741253,1725095442067,-1461.45,0.00042739,120]
[336741258,1725095442116,-500.0,0.00042739,120]
[336741259,1725095442353,-500.0,0.00042739,120]
[336741260,1725095442398,-832.48,0.00042739,120]
[336741261,1725095442443,-1180.6,0.00042739,120]
[336741262,1725095442487,-500.0,0.00042739,120]
[336741263,1725095442532,-500.0,0.00042739,120]
[336741264,1725095442578,-500.0,0.00042739,120]
[336741265,1725095442623,-623.33,0.00042739,120]
[336741266,1725095442670,-640.92,0.00042739,120]
[336741267,1725095442718,-507.13,0.00042739,120]
[336741268,1725095442765,-583.68,0.00042739,120]
[336741269,1725095442813,-638.13,0.00042739,120]
[336741270,1725095442860,-1033.65,0.00042739,120]
[336741273,1725095442906,-1435.64,0.00042739,120]
[336741274,1725095442954,-1120.04,0.00042739,120]
[336741275,1725095442999,-500.0,0.00042739,120]
[336741277,1725095443043,-500.0,0.00042739,120]
[336741281,1725095443089,-500.0,0.00042739,120]
[336741283,1725095443135,-507.63,0.00042739,120]
[336741284,1725095443185,-500.0,0.00042739,120]
[336741285,1725095443233,-1116.05,0.00042739,120]
[336741286,1725095443282,-923.19,0.00042739,120]
[336741287,1725095443331,-500.0,0.00042739,120]
[336741288,1725095443378,-500.0,0.00042739,120]
[336741289,1725095443423,-500.0,0.00042739,120]
[336741290,1725095443469,-942.12,0.00042739,120]
[336741291,1725095443513,-500.0,0.00042739,120]
[336741292,1725095443561,-500.0,0.00042739,120]
[336741293,1725095443608,-500.0,0.00042739,120]
[336741295,1725095443656,-500.0,0.00042739,120]
[336741296,1725095443704,-1000.31,0.00042739,120]
[336741297,1725095443751,-500.0,0.00042739,120]
[336741298,1725095443800,-500.0,0.00042739,120]
[336741299,1725095443848,-554.12399666,0.00042739,120]
[336741300,1725095443897,-895.39,0.00042739,120]
[336741301,1725095443943,-1205.57,0.00042739,120]
[336741302,1725095443991,-1246.58,0.00042739,120]
[336741303,1725095444040,-602.93,0.00042739,120]
[336741304,1725095444087,-868.68,0.00042739,120]
[336741305,1725095444135,-523.71,0.00042739,120]
[336741306,1725095444183,-577.35,0.00042739,120]
[336741307,1725095444230,-500.0,0.00042739,120]
[336741308,1725095444278,-628.05,0.00042739,120]
[336741309,1725095444324,-525.64,0.00042739,120]
[336741310,1725095444371,-500.0,0.00042739,120]
[336741311,1725095444415,-556.09,0.00042739,120]
[336741312,1725095444462,-500.0,0.00042739,120]
[336741313,1725095444508,-500.0,0.00042739,120]
[336741314,1725095444558,-818.9,0.00042739,120]
[336741315,1725095444605,-1130.01,0.00042739,120]
[336741316,1725095444653,-1535.29,0.00042739,120]
[336741317,1725095444699,-668.3,0.00042739,120]
[336741318,1725095444744,-500.0,0.00042739,120]
[336741319,1725095444791,-500.0,0.00042739,120]
[336741320,1725095444838,-500.0,0.00042739,120]
[336741321,1725095444884,-500.0,0.00042739,120]
[336741322,1725095444931,-500.0,0.00042739,120]
[336741323,1725095444977,-643.37,0.00042739,120]
[336741324,1725095445022,-500.0,0.00042739,120]
[336741325,1725095445067,-895.7,0.00042739,120]
[336741326,1725095445113,-856.48,0.00042739,120]
[336741327,1725095445158,-1174.72,0.00042739,120]
[336741328,1725095445204,-500.0,0.00042739,120]
[336741329,1725095445250,-1112.91,0.00042739,120]
[336741330,1725095445299,-2118.08,0.00042739,120]
[336741331,1725095445345,-1308.88,0.00042739,120]
[336741332,1725095445393,-1553.44,0.00042739,120]
[336741333,1725095445436,-500.0,0.00042739,120]
[336741334,1725095445479,-630.79,0.00042739,120]
[336741335,1725095445525,-1166.02,0.00042739,120]
[336741336,1725095445574,-1158.94,0.00042739,120]
[336741337,1725095445623,-703.89,0.00042739,120]
[336741338,1725095445671,-500.0,0.00042739,120]
[336741339,1725095445718,-500.0,0.00042739,120]
[336741340,1725095445765,-3532.54,0.00042739,120]
[336741341,1725095445812,-500.0,0.00042739,120]
[336741342,1725095445859,-591.39,0.00042739,120]
[336741343,1725095445908,-500.0,0.00042739,120]
[336741344,1725095445956,-2470.27,0.00042739,120]
[336741345,1725095446002,-2621.38,0.00042739,120]
[336741346,1725095446049,-628.61,0.00042739,120]
[336741347,1725095446096,-2571.2,0.00042739,120]
[336741348,1725095446144,-2254.77,0.00042739,120]
[336741349,1725095446191,-608.56,0.00042739,120]
[336741350,1725095446237,-2856.83,0.00042739,120]
[336741351,1725095446284,-500.0,0.00042739,120]
[336741352,1725095446331,-500.0,0.00042739,120]
[336741353,1725095446379,-787.27,0.00042739,120]
[336741355,1725095446428,-4198.98,0.00042739,120]
[336741357,1725095446474,-3814.21,0.00042739,120]
[336741358,1725095446520,-2319.72,0.00042739,120]
[336741359,1725095446567,-1187.21,0.00042739,120]
[336741360,1725095446616,-1080.36,0.00042739,120]
[336741361,1725095446661,-1282.16,0.00042739,120]
[336741362,1725095446707,-997.28,0.00042739,120]
[336741363,1725095446752,-4037.44,0.00042739,120]
[336741364,1725095446798,-500.0,0.00042739,120]
[336741365,1725095446844,-500.0,0.00042739,120]
[336741366,1725095446891,-1224.09,0.00042739,120]
[336741367,1725095446937,-500.0,0.00042739,120]
[336741368,1725095446985,-500.0,0.00042739,120]
[336741369,1725095447031,-2493.26,0.00042739,120]
[336741370,1725095447078,-1110.34,0.00042739,120]
[336741371,1725095447126,-1054.25,0.00042739,120]
[336741372,1725095447175,-590.31,0.00042739,120]
[336741373,1725095447414,-500.0,0.00042739,120]
[336741374,1725095447461,-2350.55,0.00042739,120]
[336741375,1725095447505,-1369.83,0.00042739,120]
[336741376,1725095447552,-1332.33,0.00042739,120]
[336741377,1725095447599,-150.0,0.0004277,120]
[336741378,1725095447649,-150551.43875399,0.000429,120]
[336741379,1725095447698,-3214.9,0.00042943,94]
[336741380,1725095447750,-50000.0,0.00043,43]
[336741381,1725095447800,-5000.0,0.00043,120]
[336741382,1725095447850,-185.13,0.00043014,120]
[336741383,1725095447897,-500.0,0.00043287,120]
[336741384,1725095447944,-500.0,0.00043287,120]
[336741385,1725095447990,-500.0,0.00043287,120]
[336741386,1725095448035,-500.0,0.00043287,120]
[336741387,1725095448082,-500.0,0.00043287,120]
[336741388,1725095448129,-500.0,0.00043287,120]
[336741389,1725095448176,-500.0,0.00043287,120]
[336741390,1725095448223,-500.0,0.00043287,120]
[336741391,1725095448271,-500.0,0.00043287,120]
[336741392,1725095448319,-500.0,0.00043287,120]
[336741393,1725095448366,-500.0,0.00043287,120]
[336741394,1725095448413,-500.0,0.00043287,120]
[336741395,1725095448458,-500.0,0.00043287,120]
[336741396,1725095448501,-710.71,0.00043287,120]
[336741397,1725095448546,-500.0,0.00043287,120]
[336741398,1725095448593,-557.74,0.00043287,120]
[336741399,1725095448640,-500.0,0.00043287,120]
[336741400,1725095448686,-500.0,0.00043287,120]
[336741401,1725095448731,-185.22989818,0.00043287,120]
[336741402,1725095448777,-500.0,0.00043287,120]
[336741403,1725095448823,-1123.23,0.00043287,120]
[336741404,1725095448867,-500.0,0.00043287,120]
[336741405,1725095448910,-500.0,0.00043287,120]
[336741406,1725095448955,-500.0,0.00043287,120]
[336741407,1725095448999,-762.64,0.00043287,120]
[336741408,1725095449041,-500.0,0.00043287,120]
[336741409,1725095449086,-502.32,0.00043287,120]
[336741410,1725095449131,-500.0,0.00043287,120]
[336741411,1725095449178,-679.85,0.00043287,120]
[336741412,1725095449226,-500.0,0.00043287,120]
[336741413,1725095449274,-500.0,0.00043287,120]
[336741414,1725095449319,-500.0,0.00043287,120]
[336741415,1725095449363,-721.55,0.00043287,120]
[336741416,1725095449411,-500.0,0.00043287,120]
[336741417,1725095449459,-565.51,0.00043287,120]
[336741418,1725095449505,-500.0,0.00043287,120]
[336741419,1725095449553,-500.0,0.00043287,120]
[336741420,1725095449601,-500.0,0.00043287,120]
[336741421,1725095449648,-500.0,0.00043287,120]
[336741422,1725095449696,-500.0,0.00043287,120]
[336741423,1725095449743,-500.0,0.00043287,120]
[336741424,1725095449789,-500.0,0.00043287,120]
[336741425,1725095449837,-549.02,0.00043287,120]
[336741426,1725095449883,-879.7,0.00043287,120]
[336741427,1725095449928,-1120.93,0.00043287,120]
[336741428,1725095449972,-850.45,0.00043287,120]
[336741429,1725095450015,-500.0,0.00043287,120]
[336741430,1725095450058,-500.0,0.00043287,120]
[336741431,1725095450100,-720.15,0.00043287,120]
[336741432,1725095450142,-952.01,0.00043287,120]
[336741433,1725095450184,-299.28433919,0.00043287,120]
[336741434,1725095450228,-500.0,0.00043287,120]
[336741435,1725095450275,-500.0,0.00043287,120]
[336741436,1725095450321,-767.31,0.00043287,120]
[336741437,1725095450366,-500.0,0.00043287,120]
[336741438,1725095450412,-679.65,0.00043287,120]
[336741439,1725095450459,-833.01,0.00043287,120]
[336741440,1725095450500,-500.0,0.00043287,120]
[336741441,1725095450542,-1436.9,0.00043287,120]
[336741442,1725095450586,-717.79,0.00043287,120]
[336741443,1725095450632,-911.59,0.00043287,120]
[336741444,1725095450677,-931.07,0.00043287,120]
[336741445,1725095450722,-727.87,0.00043287,120]
[336741446,1725095450765,-1205.13,0.00043287,120]
[336741447,1725095450809,-3164.47,0.00043287,120]
[336741448,1725095450853,-801.74,0.00043287,120]
[336741449,1725095450896,-500.0,0.00043287,120]
[336741450,1725095450938,-505.92,0.00043287,120]
[336741451,1725095450980,-500.0,0.00043287,120]
[336741452,1725095451021,-532.71,0.00043287,120]
[336741453,1725095451063,-1669.33,0.00043287,120]
[336741454,1725095451107,-500.0,0.00043287,120]
[336741455,1725095451153,-1066.37,0.00043287,120]
[336741456,1725095451200,-622.08,0.00043287,120]
[336741457,1725095451242,-1994.12,0.00043287,120]
[336741458,1725095451284,-1009.62,0.00043287,120]
[336741459,1725095451327,-500.0,0.00043287,120]
[336741460,1725095451370,-740.53,0.00043287,120]
[336741461,1725095451413,-1230.33,0.00043287,120]
[336741462,1725095451456,-500.0,0.00043287,120]
[336741463,1725095451500,-1763.31,0.00043287,120]
[336741464,1725095451546,-500.0,0.00043287,120]
[336741465,1725095451590,-606.13,0.00043287,120]
[336741466,1725095451633,-626.68272955,0.00043287,120]
[336741467,1725095451677,-500.0,0.00043287,120]
[336741468,1725095451721,-980.1,0.00043287,120]
[336741469,1725095451765,-988.12,0.00043287,120]
[336741470,1725095451811,-530.81,0.00043287,120]
[336741471,1725095451856,-924.86,0.00043287,120]
[336741472,1725095451901,-500.0,0.00043287,120]
[336741473,1725095451946,-500.0,0.00043287,120]
[336741474,1725095451989,-3646.24,0.00043287,120]
[336741475,1725095452033,-708.43,0.00043287,120]
[336741476,1725095452077,-500.0,0.00043287,120]
[336741477,1725095452307,-4493.23,0.00043287,120]
[336741478,1725095452356,-728.19,0.00043287,120]
[336741479,1725095452404,-500.0,0.00043287,120]
[336741480,1725095452453,-950.06,0.00043287,120]
[336741481,1725095452501,-575.64,0.00043287,120]
[336741482,1725095452550,-1920.7,0.00043287,120]
[336741483,1725095452598,-1812.32,0.00043287,120]
[336741484,1725095452646,-500.0,0.00043287,120]
[336741485,1725095452692,-1524.42,0.00043287,120]